[Event "2. Itzehoer Schach Open"]
[Site "Itzehoe, Germany"]
[Date "2023.04.30"]
[Round "3.3"]
[White "Helmer, Jan"]
[Black "Neuendorf, Max"]
[Result "1-0"]
[TimeControl "90 min / 40 Züge + 30 min + 30 Sek pro Zug"]
[WhiteElo "2091"]
[BlackElo "2000"]

1. Nf3 {[%clk 01:22:20]} {[%emt 00:08:39]} d5 {[%clk 01:29:40]} {[%emt
00:01:20]} 2. e3 {[%clk 01:22:27]} {[%emt 00:00:23]} Nf6 {[%clk 01:29:28]}
{[%emt 00:00:42]} 3. c4 {[%clk 01:21:24]} {[%emt 00:01:33]} c6 {[%clk
01:29:02]} {[%emt 00:00:55]} 4. Nc3 {[%clk 01:21:51]} {[%emt 00:00:04]} e6
{[%clk 01:15:23]} {[%emt 00:14:09]} 5. b3 {[%clk 01:22:11]} {[%emt 00:00:10]}
Bd6 {[%clk 01:14:47]} {[%emt 00:01:05]} 6. Bb2 {[%clk 01:20:09]} {[%emt
00:02:33]} O-O {[%clk 01:12:26]} {[%emt 00:02:50]} 7. d4 {[%clk 01:19:08]}
{[%emt 00:01:32]} Nbd7 {[%clk 01:09:27]} {[%emt 00:03:29]} 8. Be2 {[%clk
01:08:46]} {[%emt 00:10:52]} Qe7 {[%clk 00:55:50]} {[%emt 00:14:06]} 9. O-O
{[%clk 01:08:29]} {[%emt 00:00:48]} dxc4 {[%clk 00:53:06]} {[%emt 00:03:14]} 10.
bxc4 {[%clk 01:04:52]} {[%emt 00:04:07]} b6 {[%clk 00:48:27]} {[%emt 00:05:08]}
11. Qc2 {[%clk 01:04:05]} {[%emt 00:01:17]} Bb7 {[%clk 00:48:06]} {[%emt
00:00:52]} 12. Rad1 {[%clk 01:01:14]} {[%emt 00:03:21]} Rac8 {[%clk 00:45:57]}
{[%emt 00:02:39]} 13. Ng5 {[%clk 00:52:33]} {[%emt 00:09:11]} h6 {[%emt
00:13:42]} 14. Nge4 {[%clk 00:52:05]} Bb8 {[%clk 00:32:59]} {[%emt 00:01:13]}
15. Ng3 {[%clk 00:23:32]} {[%emt 00:29:03]} c5 {[%clk 00:15:38]} {[%emt
00:17:51]} 16. d5 {[%clk 00:18:12]} {[%emt 00:05:50]} Bxg3 {[%clk 00:09:57]}
{[%emt 00:06:10]} 17. hxg3 {[%clk 00:18:24]} {[%emt 00:00:19]} exd5 {[%clk
00:09:13]} {[%emt 00:01:14]} 18. cxd5 {[%clk 00:18:35]} {[%emt 00:00:20]} a6
{[%clk 00:08:29]} {[%emt 00:01:15]} 19. a4 {[%clk 00:17:50]} {[%emt 00:01:15]}
Rfe8 {[%clk 00:06:00]} {[%emt 00:02:59]} 20. Rfe1 {[%clk 00:17:50]} {[%emt
00:00:29]} Ne4 {[%clk 00:05:12]} {[%emt 00:01:18]} 21. Bf3 {[%clk 00:16:00]}
{[%emt 00:02:20]} Nd6 {[%clk 00:04:54]} {[%emt 00:00:49]} 22. e4 {[%clk
00:12:26]} {[%emt 00:04:03]} Ne5 {[%clk 00:05:12]} {[%emt 00:00:12]} 23. Be2
{[%clk 00:11:19]} {[%emt 00:01:38]} Nec4 {[%clk 00:02:05]} {[%emt 00:03:37]} 24.
Bc1 {[%clk 00:11:38]} {[%emt 00:00:11]} Rcd8 {[%clk 00:00:46]} {[%emt
00:01:49]} 25. f4 {[%clk 00:11:23]} {[%emt 00:00:45]} Na5 {[%clk 00:00:43]}
{[%emt 00:00:32]} 26. e5 {[%clk 00:11:03]} {[%emt 00:00:50]} Ndc4 {[%clk
00:00:39]} {[%emt 00:00:35]} 27. Qa2 {[%clk 00:06:25]} {[%emt 00:05:08]} b5
{[%clk 00:00:37]} {[%emt 00:00:31]} 28. axb5 {[%clk 00:06:52]} {[%emt
00:00:04]} axb5 {[%clk 00:00:58]} {[%emt 00:00:08]} 29. Nxb5 {[%clk 00:06:57]}
{[%emt 00:00:25]} Bxd5 {[%clk 00:00:57]} {[%emt 00:00:30]} 30. Rxd5 {[%clk
00:07:15]} {[%emt 00:00:13]} Rxd5 {[%clk 00:00:59]} {[%emt 00:00:28]} 31. Bxc4
{[%clk 00:07:44]} {[%emt 00:00:02]} Nxc4 {[%clk 00:01:08]} {[%emt 00:00:22]} 32.
Qxc4 {[%clk 00:08:11]} {[%emt 00:00:03]} Qd7 {[%clk 00:00:56]} {[%emt
00:00:41]} 33. Kh2 {[%clk 00:02:28]} {[%emt 00:06:14]} Rd1 {[%clk 00:00:51]}
{[%emt 00:00:36]} 34. Rxd1 {[%clk 00:02:29]} {[%emt 00:00:29]} Qxd1 {[%clk
00:01:19]} {[%emt 00:00:02]} 35. Nd6 {[%clk 00:02:32]} {[%emt 00:00:27]} Re7
{[%clk 00:00:58]} {[%emt 00:00:51]} 36. Qxc5 {[%clk 00:01:51]} {[%emt
00:01:12]} Qh5+ {[%clk 00:00:57]} {[%emt 00:00:30]} 37. Kg1 {[%clk 00:02:19]}
{[%emt 00:00:01]} Qd1+ {[%clk 00:01:20]} {[%emt 00:00:08]} 38. Kf2 {[%clk
00:02:46]} {[%emt 00:00:03]} Kh7 {[%clk 00:00:34]} {[%emt 00:01:15]} 39. Be3
{[%clk 00:02:22]} {[%emt 00:00:54]} f6 {[%clk 00:00:35]} {[%emt 00:00:29]} 40.
e6 {[%clk 00:01:12]} {[%emt 00:01:40]} g6 {[%clk 00:00:37]} {[%emt 00:00:29]}
41. f5 {[%clk 00:00:37]} {[%emt 00:01:04]} gxf5 {[%clk 00:25:16]} {[%emt
00:05:50]} 42. Qxf5+ {[%clk 00:28:41]} {[%emt 00:02:27]} Kg7 {[%clk 00:24:47]}
{[%emt 00:00:57]} 43. Bxh6+ {[%clk 00:28:31]} {[%emt 00:00:41]} Kxh6 {[%clk
00:21:43]} {[%emt 00:03:33]} 44. Qxf6+ {[%clk 00:28:58]} {[%emt 00:00:04]} Kh5
{[%clk 00:21:55]} {[%emt 00:00:18]} 45. Qh4+ {[%clk 00:20:53]} {[%emt
00:08:36]} Kg6 {[%clk 00:22:08]} {[%emt 00:00:17]} 46. Qxe7 {[%clk 00:19:10]}
{[%emt 00:02:13]} Qd4+ {[%clk 00:22:02]} {[%emt 00:00:36]} 47. Kf3 {[%clk
00:19:07]} {[%emt 00:00:33]} Qd3+ {[%clk 00:18:28]} {[%emt 00:04:03]} 48. Kf4
{[%clk 00:19:32]} {[%emt 00:00:05]} Qf1+ {[%clk 00:16:31]} {[%emt 00:02:27]} 49.
Ke5 {[%clk 00:19:53]} {[%emt 00:00:08]} Qa1+ {[%clk 00:09:10]} {[%emt
00:07:52]} 50. Kd5 {[%clk 00:20:18]} {[%emt 00:00:05]} Qd1+ {[%clk 00:05:36]}
{[%emt 00:04:04]} 51. Kc6 {[%clk 00:20:39]} {[%emt 00:00:09]} Qc2+ {[%clk
00:05:50]} {[%emt 00:00:16]} 52. Kd7 {[%clk 00:21:02]} {[%emt 00:00:07]} Qa4+
{[%clk 00:05:45]} {[%emt 00:00:35]} 53. Kd8 {[%clk 00:21:22]} {[%emt 00:00:11]}
Qa5+ {[%clk 00:04:21]} {[%emt 00:01:54]} 54. Qc7 {[%clk 00:21:43]} {[%emt
00:00:08]} Qa8+ {[%clk 00:04:17]} {[%emt 00:00:35]} 55. Ke7 {[%clk 00:21:31]}
{[%emt 00:00:40]} Kg7 {[%clk 00:03:33]} {[%emt 00:01:16]} 56. Qc3 {[%clk
00:21:59]} {[%emt 00:00:02]} Kh7 {[%clk 00:02:45]} {[%emt 00:01:17]} 57. Qd3
{[%clk 00:22:04]} {[%emt 00:00:26]} Kg7 {[%clk 00:02:48]} {[%emt 00:00:24]} 58.
Ne8 {[%clk 00:22:16]} {[%emt 00:00:21]} 1-0

[Event "2. Itzehoer Schach Open"]
[Site "Itzehoe, Germany"]
[Date "2023.04.30"]
[Round "3.18"]
[White "Retzlaff, Wolfgang"]
[Black "Graf, David"]
[Result "1/2-1/2"]
[TimeControl "90 min / 40 Züge + 30 min + 30 Sek pro Zug"]
[WhiteElo "1704"]
[BlackElo "1429"]

1. Nf3 {[%clk 01:30:57]} {[%emt 00:00:03]} Nf6 {[%clk 01:30:19]} {[%emt
00:00:41]} 2. c4 {[%clk 01:31:01]} {[%emt 00:00:27]} e6 {[%clk 01:27:21]}
{[%emt 00:03:28]} 3. d4 {[%clk 01:31:03]} {[%emt 00:00:27]} b6 {[%clk
01:27:40]} {[%emt 00:00:12]} 4. Bg5 {[%clk 01:30:44]} {[%emt 00:00:49]} Bb7
{[%clk 01:27:50]} {[%emt 00:00:20]} 5. e3 {[%clk 01:30:45]} {[%emt 00:00:28]}
h6 {[%clk 01:26:42]} {[%emt 00:01:38]} 6. Bh4 {[%clk 01:29:42]} {[%emt
00:01:33]} g5 {[%clk 01:23:02]} {[%emt 00:04:11]} 7. Bg3 {[%clk 01:30:10]}
{[%emt 00:00:01]} Ne4 {[%clk 01:22:48]} {[%emt 00:00:44]} 8. Nbd2 {[%clk
01:27:48]} {[%emt 00:02:53]} Nxg3 {[%clk 01:21:41]} {[%emt 00:01:37]} 9. hxg3
{[%clk 01:28:05]} {[%emt 00:00:13]} d6 {[%clk 01:16:07]} {[%emt 00:06:04]} 10.
g4 {[%clk 01:26:10]} {[%emt 00:02:25]} Nd7 {[%clk 01:16:01]} {[%emt 00:00:36]}
11. Rh2 {[%clk 01:23:03]} {[%emt 00:03:36]} Qe7 {[%clk 01:14:01]} {[%emt
00:02:31]} 12. Bd3 {[%clk 01:19:40]} {[%emt 00:03:53]} O-O-O {[%clk 01:13:29]}
{[%emt 00:01:01]} 13. Be4 {[%clk 01:19:54]} {[%emt 00:00:17]} Bxe4 {[%clk
01:10:37]} {[%emt 00:03:22]} 14. Nxe4 {[%clk 01:20:14]} {[%emt 00:00:10]} Bg7
{[%clk 01:10:59]} {[%emt 00:00:08]} 15. Qa4 {[%clk 01:19:31]} {[%emt 00:01:13]}
d5 {[%clk 01:11:07]} {[%emt 00:00:21]} 16. cxd5 {[%clk 01:18:06]} {[%emt
00:01:56]} exd5 {[%clk 01:05:02]} {[%emt 00:06:36]} 17. Nc3 {[%clk 01:18:28]}
{[%emt 00:00:07]} Kb7 {[%clk 00:57:29]} {[%emt 00:08:02]} 18. Nxd5 {[%clk
01:14:39]} {[%emt 00:04:20]} Qe6 {[%clk 00:37:58]} {[%emt 00:20:02]} 19. Nc3
{[%clk 01:12:45]} {[%emt 00:02:23]} a6 {[%clk 00:37:42]} {[%emt 00:00:46]} 20.
Qb3 {[%clk 01:03:41]} {[%emt 00:09:34]} Qxb3 {[%clk 00:36:58]} {[%emt
00:01:13]} 21. axb3 {[%clk 01:04:05]} {[%emt 00:00:07]} c5 {[%clk 00:36:46]}
{[%emt 00:00:42]} 22. d5 {[%clk 01:03:53]} {[%emt 00:00:42]} Rhe8 {[%clk
00:28:51]} {[%emt 00:08:24]} 23. O-O-O {[%clk 01:03:59]} {[%emt 00:00:23]} Nf6
{[%clk 00:28:45]} {[%emt 00:00:37]} 24. Rhh1 {[%clk 01:02:10]} {[%emt
00:02:20]} Nxg4 {[%clk 00:28:57]} {[%emt 00:00:18]} 25. Rd2 {[%clk 01:02:11]}
{[%emt 00:00:28]} f5 {[%clk 00:26:20]} {[%emt 00:03:07]} 26. Re1 {[%clk
00:57:48]} {[%emt 00:04:53]} Rd6 {[%clk 00:25:15]} {[%emt 00:01:36]} 27. Ng1
{[%clk 00:53:59]} {[%emt 00:04:19]} b5 {[%clk 00:22:04]} {[%emt 00:03:40]} 28.
Ree2 {[%clk 00:49:59]} {[%emt 00:04:30]} Nf6 {[%clk 00:12:33]} {[%emt
00:10:02]} 29. f3 {[%clk 00:48:59]} {[%emt 00:01:30]} Nh5 {[%clk 00:11:49]}
{[%emt 00:01:14]} 30. Re1 {[%clk 00:43:30]} {[%emt 00:05:59]} 1/2-1/2

[Event "2. Itzehoer Schach Open"]
[Site "Itzehoe, Germany"]
[Date "2023.04.30"]
[Round "3.2"]
[White "Kuegel, Tobias"]
[Black "Roebers, Jan"]
[Result "1-0"]
[TimeControl "90 min / 40 Züge + 30 min + 30 Sek pro Zug"]
[WhiteElo "2332"]
[BlackElo "2083"]

1. e4 {[%clk 01:29:44]} {[%emt 00:01:15]} e5 {[%clk 01:28:01]} {[%emt
00:02:59]} 2. Nf3 {[%clk 01:29:08]} {[%emt 00:01:06]} Nc6 {[%clk 01:28:22]}
{[%emt 00:00:10]} 3. Bb5 {[%clk 01:29:14]} {[%emt 00:00:24]} a6 {[%clk
01:28:42]} {[%emt 00:00:09]} 4. Bxc6 {[%clk 01:29:34]} {[%emt 00:00:10]} dxc6
{[%clk 01:29:03]} {[%emt 00:00:09]} 5. O-O {[%clk 01:29:55]} {[%emt 00:00:08]}
Bd6 {[%clk 01:29:10]} {[%emt 00:00:24]} 6. d4 {[%clk 01:27:22]} {[%emt
00:03:03]} exd4 {[%clk 01:29:28]} {[%emt 00:00:11]} 7. Qxd4 {[%clk 01:27:48]}
{[%emt 00:00:04]} f6 {[%clk 01:29:48]} {[%emt 00:00:10]} 8. Be3 {[%clk
01:28:12]} {[%emt 00:00:06]} Ne7 {[%clk 01:28:51]} {[%emt 00:01:26]} 9. Nbd2
{[%clk 01:28:33]} {[%emt 00:00:10]} Be6 {[%clk 01:28:47]} {[%emt 00:00:34]} 10.
Qc3 {[%clk 01:28:56]} {[%emt 00:00:07]} Qd7 {[%clk 01:28:33]} {[%emt 00:00:43]}
11. Nc4 {[%clk 01:27:25]} {[%emt 00:02:00]} Bxc4 {[%clk 01:27:36]} {[%emt
00:01:29]} 12. Qxc4 {[%clk 01:27:53]} {[%emt 00:00:02]} O-O-O {[%clk 01:25:28]}
{[%emt 00:02:37]} 13. Rad1 {[%clk 01:25:50]} {[%emt 00:02:32]} Ng6 {[%clk
01:25:02]} {[%emt 00:00:56]} 14. Nd4 {[%clk 01:17:56]} {[%emt 00:08:23]} Ne5
{[%clk 01:23:06]} {[%emt 00:02:27]} 15. Qe2 {[%clk 01:15:45]} {[%emt 00:02:41]}
Ng4 {[%clk 01:20:47]} {[%emt 00:02:48]} 16. Nf5 {[%clk 01:12:02]} {[%emt
00:04:14]} Nxe3 {[%clk 01:19:33]} {[%emt 00:01:44]} 17. Qxe3 {[%clk 01:11:12]}
{[%emt 00:01:20]} Kb8 {[%clk 01:19:32]} {[%emt 00:00:31]} 18. Rd3 {[%clk
01:04:05]} {[%emt 00:07:37]} g6 {[%clk 01:09:07]} {[%emt 00:10:55]} 19. Nxd6
{[%clk 01:03:02]} {[%emt 00:01:33]} cxd6 {[%clk 01:09:31]} {[%emt 00:00:06]} 20.
Rfd1 {[%clk 00:59:20]} {[%emt 00:04:11]} Qe7 {[%clk 01:05:40]} {[%emt
00:04:22]} 21. Qd2 {[%clk 00:43:20]} {[%emt 00:16:30]} Kc7 {[%clk 00:54:47]}
{[%emt 00:11:23]} 22. Qa5+ {[%clk 00:42:49]} {[%emt 00:01:01]} Kb8 {[%clk
00:53:10]} {[%emt 00:02:07]} 23. Qd2 {[%clk 00:38:24]} {[%emt 00:04:54]} Kc7
{[%clk 00:53:33]} {[%emt 00:00:07]} 24. Qa5+ {[%clk 00:38:41]} {[%emt
00:00:14]} Kb8 {[%clk 00:53:53]} {[%emt 00:00:10]} 25. Qb4 {[%clk 00:38:34]}
{[%emt 00:00:36]} Kc7 {[%clk 00:49:37]} {[%emt 00:04:46]} 26. Rb3 {[%clk
00:32:58]} {[%emt 00:06:06]} Kb8 {[%clk 00:48:10]} {[%emt 00:01:58]} 27. Qb6
{[%clk 00:26:04]} {[%emt 00:07:24]} Ka8 {[%clk 00:47:54]} {[%emt 00:00:46]} 28.
Rd4 {[%clk 00:26:33]} {[%emt 00:00:01]} Rd7 {[%clk 00:45:23]} {[%emt 00:03:01]}
29. h3 {[%clk 00:20:30]} {[%emt 00:06:33]} f5 {[%clk 00:30:30]} {[%emt
00:15:23]} 30. Re3 {[%clk 00:18:49]} {[%emt 00:02:11]} f4 {[%clk 00:24:43]}
{[%emt 00:06:17]} 31. Red3 {[%clk 00:19:18]} {[%emt 00:00:01]} g5 {[%clk
00:18:29]} {[%emt 00:06:43]} 32. c4 {[%clk 00:19:27]} {[%emt 00:00:22]} c5
{[%clk 00:13:46]} {[%emt 00:05:14]} 33. Rxd6 {[%clk 00:19:27]} {[%emt
00:00:29]} Rxd6 {[%clk 00:13:50]} {[%emt 00:00:26]} 34. Rxd6 {[%clk 00:17:51]}
{[%emt 00:02:05]} Qxe4 {[%clk 00:13:41]} {[%emt 00:00:40]} 35. Qxc5 {[%clk
00:17:17]} {[%emt 00:01:05]} Qb1+ {[%clk 00:11:32]} {[%emt 00:02:39]} 36. Kh2
{[%clk 00:17:44]} Qxb2 {[%clk 00:11:57]} {[%emt 00:00:06]} 37. a4 {[%clk
00:12:42]} {[%emt 00:05:33]} Re8 {[%clk 00:11:33]} {[%emt 00:00:53]} 38. Rxa6+
{[%clk 00:08:04]} {[%emt 00:05:09]} bxa6 {[%clk 00:12:02]} 39. Qc6+ {[%clk
00:08:20]} {[%emt 00:00:13]} Ka7 {[%clk 00:12:31]} {[%emt 00:00:01]} 40. Qxe8
{[%clk 00:08:19]} {[%emt 00:00:30]} Qxf2 {[%clk 00:08:19]} {[%emt 00:04:43]} 41.
Qe7+ {[%clk 00:07:26]} {[%emt 00:01:23]} Kb6 {[%clk 00:06:52]} {[%emt
00:01:57]} 42. Qxg5 {[%clk 00:06:11]} {[%emt 00:01:45]} h5 {[%clk 00:03:51]}
{[%emt 00:03:32]} 43. a5+ {[%clk 00:20:32]} {[%emt 00:16:08]} Kc7 {[%clk
00:31:06]} {[%emt 00:03:15]} 44. c5 {[%clk 00:13:29]} {[%emt 00:07:33]} h4
{[%clk 00:27:54]} {[%emt 00:03:42]} 45. Qe7+ {[%clk 00:11:34]} {[%emt
00:02:25]} Kc6 {[%clk 00:26:39]} {[%emt 00:01:46]} 46. Qe6+ {[%clk 00:10:34]}
{[%emt 00:01:29]} Kb5 {[%clk 00:26:58]} {[%emt 00:00:12]} 47. c6 {[%clk
00:05:46]} {[%emt 00:05:18]} Qg3+ {[%clk 00:24:21]} {[%emt 00:03:07]} 48. Kg1
{[%clk 00:04:20]} {[%emt 00:01:56]} Qc3 {[%clk 00:24:35]} {[%emt 00:00:16]} 49.
Qf5+ {[%clk 00:03:12]} {[%emt 00:01:38]} Ka4 {[%clk 00:24:49]} {[%emt
00:00:15]} 50. Qxf4+ {[%clk 00:02:37]} {[%emt 00:01:06]} Kxa5 {[%clk 00:24:38]}
{[%emt 00:00:41]} 51. Qc7+ {[%clk 00:01:51]} {[%emt 00:01:15]} Ka4 {[%clk
00:24:14]} {[%emt 00:00:53]} 52. Kf2 {[%clk 00:01:09]} {[%emt 00:01:12]} a5
{[%clk 00:23:08]} {[%emt 00:01:36]} 53. Qd7 {[%clk 00:00:56]} {[%emt 00:00:43]}
Qg3+ {[%clk 00:19:03]} {[%emt 00:04:35]} 54. Kf1 {[%clk 00:01:08]} {[%emt
00:00:17]} Qf4+ {[%clk 00:17:20]} {[%emt 00:02:13]} 55. Ke2 {[%clk 00:01:37]}
{[%emt 00:00:01]} Qe4+ {[%clk 00:17:12]} {[%emt 00:00:38]} 56. Kd2 {[%clk
00:01:31]} {[%emt 00:00:37]} Qb4+ {[%clk 00:11:39]} {[%emt 00:06:02]} 57. Ke3
{[%clk 00:01:46]} {[%emt 00:00:14]} Qe1+ {[%clk 00:11:41]} {[%emt 00:00:28]} 58.
Kf4 {[%clk 00:02:00]} {[%emt 00:00:17]} Qf2 {[%clk 00:10:07]} {[%emt 00:02:03]}
59. Kg4 {[%clk 00:02:09]} {[%emt 00:00:21]} Qg3 {[%clk 00:10:15]} {[%emt
00:00:22]} 60. Kh5 {[%clk 00:02:28]} {[%emt 00:00:11]} Qe5+ {[%clk 00:10:33]}
{[%emt 00:00:12]} 61. Kxh4 {[%clk 00:02:44]} {[%emt 00:00:14]} Qf6 {[%clk
00:10:51]} {[%emt 00:00:12]} 62. Kg4 {[%clk 00:02:05]} {[%emt 00:01:10]} Qg6
{[%clk 00:11:09]} {[%emt 00:00:12]} 63. Kf3 {[%clk 00:02:32]} {[%emt 00:00:04]}
Qf6+ {[%clk 00:11:28]} {[%emt 00:00:10]} 64. Ke4 {[%clk 00:01:41]} {[%emt
00:01:21]} Qg6 {[%clk 00:11:24]} {[%emt 00:00:34]} 65. Ke5 {[%clk 00:01:20]}
{[%emt 00:00:52]} Qg5+ {[%clk 00:11:14]} {[%emt 00:00:40]} 66. Ke6 {[%clk
00:00:54]} {[%emt 00:00:56]} Qe3+ {[%clk 00:10:34]} {[%emt 00:01:08]} 67. Kf5
{[%clk 00:00:55]} {[%emt 00:00:30]} Qf2+ {[%clk 00:10:29]} {[%emt 00:00:35]} 68.
Kg6 {[%clk 00:00:56]} {[%emt 00:00:30]} Qc2+ {[%clk 00:10:41]} {[%emt
00:00:17]} 69. Kh5 {[%clk 00:00:39]} {[%emt 00:00:48]} Qc5+ {[%clk 00:10:55]}
{[%emt 00:00:15]} 70. Kh4 {[%clk 00:00:44]} {[%emt 00:00:25]} Qf2 {[%clk
00:11:18]} {[%emt 00:00:07]} 71. g3 {[%clk 00:01:03]} {[%emt 00:00:11]} Qf6
{[%clk 00:11:27]} {[%emt 00:00:21]} 72. Kh5 {[%clk 00:01:32]} {[%emt 00:00:01]}
Qe5+ {[%clk 00:11:44]} {[%emt 00:00:12]} 73. Kg6 {[%clk 00:01:11]} {[%emt
00:00:53]} Qe4+ {[%clk 00:12:05]} {[%emt 00:00:09]} 74. Kf6 {[%clk 00:01:06]}
{[%emt 00:00:35]} Qf3+ {[%clk 00:12:16]} {[%emt 00:00:18]} 75. Kg7 {[%clk
00:01:27]} {[%emt 00:00:09]} Qc3+ {[%clk 00:12:34]} {[%emt 00:00:12]} 76. Kh7
{[%clk 00:01:30]} {[%emt 00:00:26]} Qc2+ {[%clk 00:12:55]} {[%emt 00:00:09]} 77.
Kh6 {[%clk 00:01:53]} {[%emt 00:00:07]} Qc1+ {[%clk 00:13:10]} {[%emt
00:00:16]} 78. Kh5 {[%clk 00:02:02]} {[%emt 00:00:20]} Qc5+ {[%clk 00:13:07]}
{[%emt 00:00:33]} 79. Kh4 {[%clk 00:02:15]} {[%emt 00:00:17]} Kb3 {[%clk
00:09:33]} {[%emt 00:04:05]} 80. c7 {[%clk 00:02:13]} {[%emt 00:00:31]} Qb4+
{[%clk 00:09:54]} {[%emt 00:00:09]} 81. g4 {[%clk 00:02:01]} {[%emt 00:00:42]}
Qe1+ {[%clk 00:10:15]} {[%emt 00:00:08]} 82. Kh5 {[%clk 00:02:21]} {[%emt
00:00:09]} Qe5+ {[%clk 00:10:24]} {[%emt 00:00:21]} 83. g5 {[%clk 00:02:34]}
{[%emt 00:00:18]} Qe2+ {[%clk 00:10:20]} {[%emt 00:00:35]} 84. Kh6 {[%clk
00:02:43]} {[%emt 00:00:20]} 1-0